Cogmind - Beta 14 @@@ ROGUE MODE // 2024.09.04 @ 13:57:37 Player: THN-L0C Result: Destroyed by S-10 Pest with Light Assault Rifle Performance ------------- Evolutions (0) 0 Regions Visited (2) 400 Robots Destroyed (22) 110 Value Destroyed (509) 509 Prototype IDs (0) 0 Alien Tech Used (0) 0 Bonus (0) 0 TOTAL SCORE: 1019 Bonus ------- None Cogmind --------- Core Integrity 0/250 Matter 300/300 Energy 100/100 System Corruption 0% Temperature Cool (0) Movement Treading (160) Location -10/Mines Parts ------- > --- POWER (1) -------- (None) > --- PROPULSION (2) --- Light Treads > --- UTILITY (2) ------ Heat Sink Small Storage Unit > --- WEAPON (2) ------- Small Laser > --- INVENTORY (8) ---- Heat Sink Large Storage Unit Medium Matter Pod (100) Improved Terrain Scanner Hammer Proton Bomb Trap Proton Bomb Trap Peak State ------------ > --- POWER ------------ Light Nuclear Core > --- PROPULSION ------- Light Treads Light Treads > --- UTILITY ---------- Small Storage Unit Seismic Detector > --- WEAPON ----------- Small Laser Small Laser > --- INVENTORY -------- Light Ion Engine Improved Terrain Scanner EM Pulse Gun [Rating: 9] Favorites ----------- Power Light Ion Engine Engine Light Ion Engine Power Core Light Nuclear Core Propulsion Light Treads Treads Light Treads Utility Small Storage Unit Device Heat Sink Storage Small Storage Unit Weapon Small Laser Energy Gun Small Laser Impact Weapon Hammer Build | -11 -10 -10 ------- Run | Yrd Mat Min Slots Evolved . | . . . Power . | . . . Propulsion . | . . . Utility . | . . . Weapon . | . . . Parts Attached 17 | 8 6 3 Power 3 | 1 2 . Engine 2 | 1 1 . Core 1 | . 1 . Reactor . | . . . Propulsion 3 | 2 1 . Treads 3 | 2 1 . Leg . | . . . Wheel . | . . . Hover . | . . . Flight . | . . . Utility 4 | 2 1 1 Device 3 | 1 1 1 Storage 1 | 1 . . Processor . | . . . Hackware . | . . . Protection . | . . . Artifact . | . . . Weapon 7 | 3 2 2 Energy Gun 6 | 3 1 2 Energy Cannon . | . . . Ballistic Gun . | . . . Ballistic Cannon . | . . . Launcher . | . . . Special Weapon . | . . . Impact Weapon 1 | . 1 . Slashing Weapon . | . . . Piercing Weapon . | . . . Special Melee Weapon . | . . . Unidentified Prototypes . | . . . Parts Lost 8 | . 4 4 Power 2 | . 1 1 Propulsion 2 | . 1 1 Utility 1 | . 1 . Weapon 3 | . 1 2 Highest Loss Streak 3 | . 3 3 To Critical Strikes . | . . . Average Slot Usage (%) 89 | . 88 91 Engine 7 | . 5 12 Core 5 | . 7 . Treads 27 | . 27 26 Device 8 | . 6 14 Storage 14 | . 14 14 Energy Gun 24 | . 25 21 Impact Weapon 1 | . 1 1 Peak Build Rating 9 | 7 9 7 Average Rating 6 | 5 7 6 On Entrance 4 | . 7 7 Naked Turns . | . . . Heaviest Build 13 | 11 13 13 Greatest Support 40 | 40 40 40 Greatest Overweight (x) . | . . . Average Overweight (x) . | . . . Largest Inventory Capacity 8 | 8 8 8 Average Capacity 7 | 7 8 8 Most Carried 7 | 2 6 7 Average Carried 3 | . 3 4 Final Capacity 8 | 8 8 8 Final Carried 7 | 2 4 7 Class Distribution -------------------- 100% | Mutant Dominant Class ---------------- Mutant | -10/Materials Mutant | -10/Mines Resources | -11 -10 -10 ----------- Run | Yrd Mat Min Matter Collected 460 | 182 123 155 Remotely . | . . . Salvage Created 634 | 33 297 304 Parts 45 | 6 20 19 Haulers Intercepted . | . . . Recyclers Shooed . | . . . Parts Field Recycled . | . . . Retrieved Matter . | . . . Parts Self-Destructed . | . . . Prevented . | . . . Kills | -11 -10 -10 ------- Run | Yrd Mat Min Combat Hostiles Destroyed 18 | . 12 6 Guns 18 | . 12 6 Classes Destroyed 4 | 1 3 . Tunneler 3 | 2 . 1 Watcher 1 | . 1 . Swarmer 8 | . 8 . Grunt 10 | . 4 6 Best Kill Streak 5 | 2 5 2 Combat Bots Only 5 | . 5 2 Max Kills in Single Turn 1 | 1 1 1 Gunslinging . | . . . Exploded . | . . . Melee . | . . . Uniques/NPCs Destroyed . | . . . Combat | -11 -10 -10 -------- Run | Yrd Mat Min Hostile Shots Fired 130 | . 91 39 Missed 29 | . 20 9 Damage Taken 1047 | . 700 347 Core 250 | . 197 53 Absorbed by Shields . | . . . Core Remaining (%) 100 | 100 . . Volleys Fired 82 | 4 48 30 Largest 2 | 2 2 2 Hottest 80 | 80 80 80 Shots Fired 145 | 8 90 47 Gun 145 | 8 90 47 Cannon . | . . . Launcher . | . . . Special . | . . . Kinetic . | . . . Thermal 122 | 8 89 25 Explosive . | . . . Electromagnetic 23 | . 1 22 Robot Hit Streak 15 | 5 6 15 Robot Miss Streak 9 | 1 9 3 Penetration Max . | . . . Secondary Targets 4 | . 4 . Max Gunslinging Chain 1 | . 1 . Shots Hit Robots 87 | 6 44 37 Core Hits 39 | 3 20 16 Critical Kills . | . . . Critical Parts Destroyed . | . . . Critical Strikes . | . . . Melee Attacks 1 | . 1 . Impact 1 | . 1 . Slashing . | . . . Piercing . | . . . Sneak Attacks . | . . . Combat Hostiles . | . . . Follow-up Attacks . | . . . Damage Inflicted 1092 | 65 508 519 Guns 1040 | 65 508 467 Cannons . | . . . Explosions 52 | . . 52 Melee . | . . . Ramming . | . . . Kinetic . | . . . Thermal 845 | 65 508 272 Explosive . | . . . Electromagnetic 247 | . . 247 Impact . | . . . Slashing . | . . . Piercing . | . . . Highest Corruption . | . . . Average Corruption . | . . . Corruption Purged . | . . . Corruption Blocked . | . . . Overload Shots . | . . . Overflow Damage . | . . . Projectiles . | . . . Explosions . | . . . Melee . | . . . Knockbacks . | . . . Impact . | . . . Kinetic . | . . . Secondary . | . . . Self-Inflicted Damage . | . . . Shots . | . . . Rammed . | . . . Targets Rammed . | . . . Kicked . | . . . Crushed . | . . . Highest Temperature 278 | 36 278 14 Average Temperature 78 | 16 90 4 Received Heat Transfer 420 | . 225 195 Siege Activations . | . . . Robots Corrupted . | . . . Combat Hostiles . | . . . Parts Fried . | . . . Impact Corruptions . | . . . Robots Melted . | . . . Combat Hostiles . | . . . Parts Melted 1 | . . 1 Heat Transferred 1900 | 150 1175 575 Parts Sabotaged . | . . . Parts Stolen . | . . . Parts Stripped . | . . . Power Chain Reactions 1 | . . 1 Alert | -11 -10 -10 ------- Run | Yrd Mat Min Peak Influence 192 | 10 192 144 Initial 16 | . 6 16 Average 85 | 3 101 76 Maximum Alert Level . | . . . Low Security (%) 100 | 100 100 100 Level 1 . | . . . Level 2 . | . . . Level 3 . | . . . Level 4 . | . . . Level 5 . | . . . High Security . | . . . Max Security . | . . . Squads Dispatched 2 | . 2 . Investigation 1 | . 1 . Extermination . | . . . Reinforcement 1 | . 1 . Assault . | . . . Garrison . | . . . Intercept . | . . . Searches Triggered . | . . . Construction Impeded . | . . . Haulers Reinforced . | . . . Active Scanning Responses . | . . . Cargo Convoy Interrupts . | . . . Stealth | -11 -10 -10 --------- Run | Yrd Mat Min Distress Signals . | . . . Communications Jammed . | . . . Distress Signals . | . . . Times Spotted 30 | . 19 11 Peak Tracking Total 5 | . 5 2 Tactical Retreats . | . . . Traps | -11 -10 -10 ------- Run | Yrd Mat Min Traps Triggered 1 | . 1 . Indirectly . | . . . Trap Hack Attempts . | . . . Triggered . | . . . Disarmed . | . . . Reprogrammed . | . . . Reused . | . . . Traps Extracted . | . . . Installed . | . . . Triggered . | . . . Most Traps Carried 2 | . . 2 Machines | -11 -10 -10 ---------- Run | Yrd Mat Min Machines Disabled . | . . . Max in Single Turn . | . . . Machines Repaired . | . . . Machines Dismantled . | . . . Machines Sabotaged . | . . . Overloaded Fab Kills . | . . . Hacking | -11 -10 -10 --------- Run | Yrd Mat Min Machines Accessed 6 | . 6 . Terminals 6 | . 6 . Fabricators . | . . . Repair Stations . | . . . Recycling Units . | . . . Scanalyzers . | . . . Garrison Access . | . . . Total Hacks 15 | . 15 . Successful 10 | . 10 . Failed 5 | . 5 . Catastrophic . | . . . Database Lockouts . | . . . Manual 15 | . 15 . Terminals 15 | . 15 . Fabricators . | . . . Repair Stations . | . . . Recycling Units . | . . . Scanalyzers . | . . . Garrison Access . | . . . Terminal Hacks 3 | . 3 . Robot Analysis 2 | . 2 . Locate Traps 1 | . 1 . Fabricator Hacks . | . . . Repair Station Hacks . | . . . Recycling Unit Hacks . | . . . Scanalyzer . | . . . Garrison Access Hacks . | . . . Unauthorized Hacks 7 | . 7 . Terminals 7 | . 7 . Botnet 2 | . 2 . Skim 5 | . 5 . Fabricators . | . . . Repair Stations . | . . . Recycling Units . | . . . Scanalyzers . | . . . Garrison Access . | . . . Data Cores Recovered . | . . . Used . | . . . Hacking Detections 5 | . 5 . Full Trace Events . | . . . Feedback Events . | . . . Feedback Blocked . | . . . Robot Schematics Acquired . | . . . Robots Built . | . . . Authchips . | . . . Time . | . . . Total Robot Build Rating . | . . . Part Schematics Acquired . | . . . Parts Built . | . . . Authchips . | . . . Time . | . . . Total Part Build Rating . | . . . Parts Repaired . | . . . Time . | . . . Parts Recycled . | . . . Recycled Matter . | . . . Retrieved Matter . | . . . Retrieved Components . | . . . Parts Scanalyzed . | . . . Part Schematics Acquired . | . . . Parts Damaged . | . . . Bothacking | -11 -10 -10 ------------ Run | Yrd Mat Min Used RIF Installer . | . . . Robots Hacked . | . . . Non-combat . | . . . Combat . | . . . Robot Hacks Applied . | . . . Relay Couplers Released . | . . . Fabnet Peak Effective % . | . . . Robots Rewired . | . . . Allies Hacked . | . . . Hacks Repelled . | . . . Allies | -11 -10 -10 -------- Run | Yrd Mat Min Total Allies . | . . . Largest Group . | . . . Highest-Rated Group . | . . . Highest-Rated Ally . | . . . Total Orders . | . . . Ally Attacks . | . . . Total Damage . | . . . Kills . | . . . Allies Corrupted . | . . . Allies Melted . | . . . Intel | -11 -10 -10 ------- Run | Yrd Mat Min Robot Analysis Total 2 | . 2 . Derelict Logs Recovered . | . . . Drone Launches . | . . . Drone Recoveries . | . . . Exploration | -11 -10 -10 ------------- Run | Yrd Mat Min Turns Passed 1454 | 147 933 374 Spaces Moved 604 | 78 354 172 Core 4 | 4 . . Treads 600 | 74 354 172 Legs . | . . . Wheels . | . . . Hover . | . . . Flight . | . . . Fastest Speed 50 | 50 160 160 Average Speed 159 | 154 160 160 Slowest Speed 160 | 160 160 160 Overloaded Moves . | . . . Propulsion Burnouts . | . . . Robots Hopped . | . . . Cave-ins Triggered . | . . . Exploration Rate (%) 40 | 5 74 41 Regions Visited 2 Branch Regions 1 Pre-discovered Areas 2 | . 2 . Known Exits Taken . | . . . Unknown Exits Taken 2 | 1 1 . Scrap Searched 1 | . . 1 Spaces Dug 1 | . 1 . Terrain Destroyed 4 | . 1 3 Melee 1 | . 1 . Projectile . | . . . AOE 3 | . . 3 Terrain Rammed . | . . . Walls Destroyed . | . . . Machines Disabled . | . . . Actions | -11 -10 -10 --------- Run | Yrd Mat Min Total 942 | 93 627 222 Wait 232 | 2 215 15 Move 602 | 77 353 172 Hop . | . . . Pick Up 7 | 1 4 2 Fast Attach 10 | 8 1 1 Attach 3 | . 3 . Detach 1 | 1 . . Swap 4 | . 2 2 Drop . | . . . Fire 82 | 4 48 30 Melee 1 | . 1 . Ram . | . . . Kick . | . . . Crush . | . . . Escape Stasis . | . . . Rewire . | . . . Trap . | . . . Miscellaneous . | . . . Route ------- -11/Scrapyard -10/Materials (discovered 5 exits: *Mat x3 / [*Min] / Sub) -10/Mines (discovered 2 exits: Mat x2) History --------- Turn | Location | Event 5 | -11/Scrapyard | Discovered new exit (range 15) 148 | -11/Scrapyard | Entered Materials 308 | -10/Materials | Build established: Mutant 457 | -10/Materials | Discovered new exit (range 16) 588 | -10/Materials | Discovered new exit (range 14) 689 | -10/Materials | Discovered new exit (range 15) 714 | -10/Materials | Core integrity fell below 50% 749 | -10/Materials | Lost 3 parts (1p1n1w) 874 | -10/Materials | Learned location of Mines (-10) 913 | -10/Materials | Learned Storage trap positions 942 | -10/Materials | Identified exit to Subcaves 961 | -10/Materials | Learned Storage emergency access door positions 972 | -10/Materials | Learned location of 1 exit from Recycling 975 | -10/Materials | Identified exit to Materials 986 | -10/Materials | Learned location of 1 exit from Recycling 1006 | -10/Materials | Learned 2 Storage zone layouts 1076 | -10/Materials | Learned location of 2 exits from Subcaves 1081 | -10/Materials | Entered Mines 1125 | -10/Mines | Core integrity fell below 20% 1436 | -10/Mines | Found a hidden stash of uninstalled traps 1438 | -10/Mines | Assembled infested the area 1453 | -10/Mines | Lost 3 parts (1p1n1w) 1455 | -10/Mines | Destroyed by S-10 Pest with Light Assault Rifle Last Messages --------------- 01305_ U-05 Engineer builds a Wall. 01307_ R-06 Scavenger collects Mining Laser. 01312_ G-47 Trooper destroyed. 01312_ R-06 Scavenger collects Corrupted Aluminum Leg. 01318_ Acquired 10 matter. 01332_ K-01 Serf collects debris. 01401_ G-47 Trooper destroyed. 01406_ EM Pulse Gun destroyed. 01410_ Lgt. Treads destroyed. 01422_ Lgt. Ion Engine destroyed. 01422_ Heat Sink melted. 01422_ G-34 Mercenary destroyed. 01430_ K-01 Serf collects debris. 01436_ A stash of uninstalled traps is collected here! 01438_ ALERT: Infestation in the mines, dispatching Demolisher response squad. 01439_ Acquired Proton Bomb Trap. 01446_ T-07 Excavator destroyed. 01449_ K-01 Serf collects debris. 01449_ K-01 Serf destroyed. Map ----- +----------------------------------------------------+ | ???????????????????????????????????????? | | ???????????????????????????????????????? | | ???????????????????????????????????????? | | ???????????????????????????????????????? | | ???????????????????????????????????????? | | ???????????????????????????????????????? | | ???????????????????????????????????????? | | ???????????????????????????????????????? | | ???????????????????????????????????????? | | ???????????????????????????????????????? | | ???????????????????????????????????????? | | ???????????????????????????????????????? | | ???????????????????????????????????????? | | ????????????????#??????????????????????? | | ????????????????# ?????????????????????? | | ????????????????# ?????????????????????? | | ???????????????## ?????????????????????? | | ??????????????## ##???????????????????? | | ??????????????# ##?????????????????? | | ???????######## ##????????????????? | | ?????? = #????????????????? | | ?????????????#!% ####?????????????? | | ?????????????# ! & & #?????????????? | | ?????????????## & ## #??????" ?????? | | ??????????????#### ### ###s """ #???? | | ?????????????????## #?# @ ss #???? | | ??????????????????#% #?# ### #???? | | ??????????????????# ###=#?????? #???? | | ??????????????????# *%[%*#?????????????? | | ????????????????### ###=#?????????????? | | ???????????????## #?# #?????????????? | | ??????????????## #?# #?????????????? | | ????????####### ##?# #?????????????? | | ???????## #### ??????????????? | | ???????# """ ##??????????????? | | ???????# """ #??????????????? | | ???????# """ #??????????????? | | ???????# ##??????????????? | | ???????## ### ##???????????????? | | ????????### ##?## #????????????????? | | ??????????# #???# #????????????????? | | ??????????# #???## ##????????????????? | | ??????????# #????####?????????????????? | | ?????????## ##????????????????????????? | | ????????## #####????????????????????? | | ???????## ##???????????????????? | | ??????## #???????????????????? | | ?????## ????????????? | | ????## ## ????????????? | | ????# ##? #### #????????????? | +----------------------------------------------------+ Best States ------------- Heat Dissipation 35 Energy Generation 14 Energy Capacity 160 Matter Stores 300 Matter Capacity 300 Sight Range 16 Terrain Scan Density 10 Evasion (%) 40 Recoil Reduction 2 Item Schematics ----------------- None Robot Schematics ------------------ None Fabricated ------------ Nothing Alien Tech Used ----------------- None Achievements -------------- None Challenges ------------ None Game ------ Seed ShockMappingHammer Manual? 0 Play Time 00:09:25 Cumulative 209.0 hours Start 2024.09.04 @ 13:50:04 End 2024.09.04 @ 13:57:37 Sessions 1 Manual Loads 0 Difficulty Rogue Special Mode None Game No. 179 Rogue 179 Adventurer 0 Explorer 0 Win Type - Total 1 Types 0/0/0/1/0/0/0/0/0 Lore% 63 Gallery% 73 Achievement% 54 Wizard Run 0 Options --------- Layout 2 ASCII 0 Keyboard 1 Movement Vi Keybinds 0 Fullscreen 1 Font 32/SmallcapsGlow Map View 77x44 Zoom Use 0% Tactical HUD 1 Map Filters NONE Filters NONE Steam 1 RUN: 94684d72-f26d-4114-8f9d-f2145758ca1b